[Event "Early-Titled-Tuesday-Blitz-August-29-2023"]
[Site "Chess.com"]
[Date "2023.08.29"]
[Round "9"]
[White "DenLaz"]
[Black "Andreikka"]
[Result "1-0"]
[WhiteElo "3067"]
[BlackElo "3032"]
[TimeControl "180+1"]
[EndTime "9:43:49 PDT"]
[Termination "DenLaz won on time"]

1. d4 {[%clk 0:03:00.9]} 1... d5 {[%clk 0:02:59.9]} 2. c4 {[%clk 0:03:01.4]}
2... e6 {[%clk 0:03:00.4]} 3. Nf3 {[%clk 0:03:02]} 3... a6 {[%clk 0:02:57]} 4.
cxd5 {[%clk 0:03:02]} 4... exd5 {[%clk 0:02:57.9]} 5. Nc3 {[%clk 0:03:02.7]}
5... c6 {[%clk 0:02:57.9]} 6. Qc2 {[%clk 0:03:02.2]} 6... Be7 {[%clk 0:02:52.2]}
7. Bf4 {[%clk 0:02:59.7]} 7... Nf6 {[%clk 0:02:52.8]} 8. e3 {[%clk 0:03:00.2]}
8... Nbd7 {[%clk 0:02:46.4]} 9. Bd3 {[%clk 0:02:57.8]} 9... Nf8 {[%clk
0:02:46.7]} 10. h3 {[%clk 0:02:52.7]} 10... Ne6 {[%clk 0:02:45.8]} 11. Bh2
{[%clk 0:02:50.6]} 11... Bd6 {[%clk 0:02:35.5]} 12. Bxd6 {[%clk 0:02:30.7]}
12... Qxd6 {[%clk 0:02:36.4]} 13. O-O {[%clk 0:02:31.4]} 13... O-O {[%clk
0:02:34.8]} 14. Rad1 {[%clk 0:02:25.8]} 14... g6 {[%clk 0:02:30.7]} 15. Na4
{[%clk 0:02:13.2]} 15... Bd7 {[%clk 0:02:21.3]} 16. Ne5 {[%clk 0:02:03.3]} 16...
Rae8 {[%clk 0:02:17.9]} 17. f4 {[%clk 0:02:01]} 17... Ng7 {[%clk 0:02:11.2]} 18.
g4 {[%clk 0:02:00.1]} 18... Bc8 {[%clk 0:02:05.4]} 19. Qf2 {[%clk 0:01:55.2]}
19... Ne4 {[%clk 0:01:50.6]} 20. Bxe4 {[%clk 0:01:47.5]} 20... dxe4 {[%clk
0:01:51.5]} 21. Nc3 {[%clk 0:01:47.7]} 21... f6 {[%clk 0:01:25.5]} 22. Nc4
{[%clk 0:01:46.7]} 22... Qc7 {[%clk 0:01:25.4]} 23. Qe2 {[%clk 0:01:38.1]} 23...
Kh8 {[%clk 0:00:56.5]} 24. d5 {[%clk 0:01:34.1]} 24... cxd5 {[%clk 0:00:52.9]}
25. Nxd5 {[%clk 0:01:35]} 25... Qc6 {[%clk 0:00:43.5]} 26. Nc3 {[%clk
0:01:08.7]} 26... Rd8 {[%clk 0:00:40.8]} 27. Na5 {[%clk 0:01:04.5]} 27... Qb6
{[%clk 0:00:38.3]} 28. Nb3 {[%clk 0:01:03.6]} 28... f5 {[%clk 0:00:31.9]} 29. g5
{[%clk 0:00:41.4]} 29... Be6 {[%clk 0:00:15.2]} 30. Nd4 {[%clk 0:00:41]} 30...
Bf7 {[%clk 0:00:15.5]} 31. Qf2 {[%clk 0:00:37.5]} 31... Qc7 {[%clk 0:00:11.3]}
32. Rc1 {[%clk 0:00:36.6]} 32... Qe7 {[%clk 0:00:11.4]} 33. b3 {[%clk
0:00:36.8]} 33... h6 {[%clk 0:00:11.4]} 34. h4 {[%clk 0:00:35.1]} 34... Kh7
{[%clk 0:00:11.9]} 35. Kg2 {[%clk 0:00:34.8]} 35... Rd7 {[%clk 0:00:11.6]} 36.
Nce2 {[%clk 0:00:35.2]} 36... Rfd8 {[%clk 0:00:11.3]} 37. Rh1 {[%clk 0:00:35.5]}
37... Nh5 {[%clk 0:00:07.8]} 38. Rhd1 {[%clk 0:00:30.5]} 38... Ng7 {[%clk
0:00:07.8]} 39. Ng3 {[%clk 0:00:30.1]} 39... Rc7 {[%clk 0:00:06]} 40. Rxc7
{[%clk 0:00:28.8]} 40... Qxc7 {[%clk 0:00:06.9]} 41. gxh6 {[%clk 0:00:28.2]}
41... Kxh6 {[%clk 0:00:06.8]} 42. Rh1 {[%clk 0:00:28.9]} 42... Rxd4 {[%clk
0:00:03.9]} 43. exd4 {[%clk 0:00:28.8]} 43... Bd5 {[%clk 0:00:04.1]} 44. Qe3
{[%clk 0:00:27.1]} 44... Ne6 {[%clk 0:00:04.8]} 45. Ne2 {[%clk 0:00:27.5]} 45...
Qc2 {[%clk 0:00:01.3]} 46. Kf2 {[%clk 0:00:19.7]} 1-0

[Event "Early-Titled-Tuesday-Blitz-August-29-2023"]
[Site "Chess.com"]
[Date "2023.08.29"]
[Round "9"]
[White "rasmussvane"]
[Black "GMG"]
[Result "1-0"]
[WhiteElo "2982"]
[BlackElo "2746"]
[TimeControl "180+1"]
[EndTime "9:43:49 PDT"]
[Termination "rasmussvane won on time"]

1. Nf3 {[%clk 0:03:00.5]} 1... e6 {[%clk 0:02:57.3]} 2. g3 {[%clk 0:03:00.4]}
2... b5 {[%clk 0:02:57.8]} 3. Bg2 {[%clk 0:03:01.3]} 3... Bb7 {[%clk 0:02:58.3]}
4. O-O {[%clk 0:03:02]} 4... Nf6 {[%clk 0:02:58.9]} 5. d3 {[%clk 0:03:02.7]}
5... d6 {[%clk 0:02:55.6]} 6. e4 {[%clk 0:03:02.1]} 6... Nbd7 {[%clk 0:02:52]}
7. a4 {[%clk 0:02:42.4]} 7... b4 {[%clk 0:02:50.9]} 8. Nbd2 {[%clk 0:02:41.1]}
8... a5 {[%clk 0:02:34.1]} 9. Nc4 {[%clk 0:02:39.5]} 9... Be7 {[%clk 0:02:25.8]}
10. Re1 {[%clk 0:02:26.5]} 10... O-O {[%clk 0:02:21.3]} 11. Bd2 {[%clk
0:02:26.2]} 11... Nc5 {[%clk 0:02:16.4]} 12. Qe2 {[%clk 0:02:19.9]} 12... Re8
{[%clk 0:02:10.4]} 13. e5 {[%clk 0:02:16.6]} 13... Nd5 {[%clk 0:02:05.2]} 14. d4
{[%clk 0:02:14.2]} 14... Nd7 {[%clk 0:02:05]} 15. Qe4 {[%clk 0:01:58.5]} 15...
dxe5 {[%clk 0:01:17.3]} 16. dxe5 {[%clk 0:01:53]} 16... Nc5 {[%clk 0:01:10]} 17.
Qg4 {[%clk 0:01:53]} 17... Nb6 {[%clk 0:01:00.9]} 18. Bh6 {[%clk 0:01:48.9]}
18... Bf8 {[%clk 0:00:58.4]} 19. Rad1 {[%clk 0:01:45.3]} 19... Qc8 {[%clk
0:00:48.8]} 20. Nxb6 {[%clk 0:01:45.2]} 20... cxb6 {[%clk 0:00:49.2]} 21. h4
{[%clk 0:01:24.5]} 21... Qc7 {[%clk 0:00:35.8]} 22. h5 {[%clk 0:01:24.1]} 22...
Kh8 {[%clk 0:00:33.4]} 23. Be3 {[%clk 0:01:18.9]} 23... h6 {[%clk 0:00:26.2]}
24. b3 {[%clk 0:01:00.8]} 24... Rad8 {[%clk 0:00:20.7]} 25. Nd4 {[%clk
0:00:59.9]} 25... Bxg2 {[%clk 0:00:19.5]} 26. Kxg2 {[%clk 0:01:00.8]} 26... Rd5
{[%clk 0:00:17.5]} 27. Nb5 {[%clk 0:00:41.2]} 27... Qb7 {[%clk 0:00:15.8]} 28.
Qf3 {[%clk 0:00:32.2]} 28... Red8 {[%clk 0:00:13.8]} 29. Bxc5 {[%clk 0:00:32.1]}
29... Bxc5 {[%clk 0:00:13.4]} 30. Rd3 {[%clk 0:00:26.8]} 30... R8d7 {[%clk
0:00:11.7]} 31. Red1 {[%clk 0:00:23.7]} 31... Rxd3 {[%clk 0:00:11.8]} 32. Rxd3
{[%clk 0:00:24.6]} 32... Qxf3+ {[%clk 0:00:10.9]} 33. Kxf3 {[%clk 0:00:25.5]}
33... Rxd3+ {[%clk 0:00:09.2]} 34. cxd3 {[%clk 0:00:26.4]} 34... f6 {[%clk
0:00:08]} 35. d4 {[%clk 0:00:24.7]} 35... Be7 {[%clk 0:00:08.1]} 36. Nc7 {[%clk
0:00:24.4]} 36... fxe5 {[%clk 0:00:05.8]} 37. dxe5 {[%clk 0:00:25.3]} 37... Kg8
{[%clk 0:00:06.1]} 38. Ke4 {[%clk 0:00:22.1]} 38... Kf7 {[%clk 0:00:05.9]} 39.
f4 {[%clk 0:00:20.9]} 39... Bc5 {[%clk 0:00:06]} 40. g4 {[%clk 0:00:20.9]} 40...
Ke7 {[%clk 0:00:06.3]} 41. f5 {[%clk 0:00:21.4]} 41... exf5+ {[%clk 0:00:06.2]}
42. gxf5 {[%clk 0:00:22.3]} 42... Kd7 {[%clk 0:00:05.7]} 43. Nb5 {[%clk
0:00:20.8]} 43... Kc6 {[%clk 0:00:05.1]} 44. Nd4+ {[%clk 0:00:20.1]} 44... Kd7
{[%clk 0:00:03.9]} 45. Ne6 {[%clk 0:00:19.1]} 45... Bf2 {[%clk 0:00:02.7]} 46.
Nxg7 {[%clk 0:00:19.1]} 46... b5 {[%clk 0:00:03.3]} 47. axb5 {[%clk 0:00:17.5]}
47... a4 {[%clk 0:00:04.2]} 48. bxa4 {[%clk 0:00:18.4]} 48... b3 {[%clk
0:00:03.2]} 49. Kd3 {[%clk 0:00:18.1]} 49... Bd4 {[%clk 0:00:03.8]} 50. Ne6
{[%clk 0:00:16.4]} 50... Bxe5 {[%clk 0:00:03.9]} 51. Nc5+ {[%clk 0:00:16.8]}
51... Ke7 {[%clk 0:00:04]} 52. Nxb3 {[%clk 0:00:17.6]} 52... Kf6 {[%clk
0:00:04.6]} 53. Ke4 {[%clk 0:00:18.1]} 1-0

[Event "Early-Titled-Tuesday-Blitz-August-29-2023"]
[Site "Chess.com"]
[Date "2023.08.29"]
[Round "9"]
[White "ljuks68"]
[Black "IljaZaragatski"]
[Result "1-0"]
[WhiteElo "2464"]
[BlackElo "2593"]
[TimeControl "180+1"]
[EndTime "9:43:51 PDT"]
[Termination "ljuks68 won by resignation"]

1. e4 {[%clk 0:02:52.6]} 1... e6 {[%clk 0:02:53.8]} 2. d4 {[%clk 0:02:52.3]}
2... d5 {[%clk 0:02:53.7]} 3. Nc3 {[%clk 0:02:53]} 3... Nc6 {[%clk 0:02:53.8]}
4. Nf3 {[%clk 0:02:52.2]} 4... Nf6 {[%clk 0:02:53.8]} 5. Bd3 {[%clk 0:02:50.9]}
5... Nb4 {[%clk 0:02:53.2]} 6. e5 {[%clk 0:02:48.3]} 6... Nd7 {[%clk 0:02:52.3]}
7. Bg5 {[%clk 0:02:33.1]} 7... Be7 {[%clk 0:02:52.2]} 8. Bxe7 {[%clk 0:02:32.7]}
8... Qxe7 {[%clk 0:02:53.1]} 9. Be2 {[%clk 0:02:30]} 9... c5 {[%clk 0:02:48.9]}
10. Nb5 {[%clk 0:02:24.2]} 10... O-O {[%clk 0:02:47.9]} 11. c3 {[%clk
0:02:22.3]} 11... Nc6 {[%clk 0:02:47.3]} 12. O-O {[%clk 0:02:09.4]} 12... a6
{[%clk 0:02:42.7]} 13. Na3 {[%clk 0:02:08.2]} 13... f6 {[%clk 0:02:39.9]} 14.
exf6 {[%clk 0:02:06.4]} 14... Nxf6 {[%clk 0:02:38.1]} 15. Re1 {[%clk 0:02:03.2]}
15... Bd7 {[%clk 0:02:35.1]} 16. Nc2 {[%clk 0:01:41.4]} 16... Be8 {[%clk
0:02:34.2]} 17. c4 {[%clk 0:01:36.2]} 17... cxd4 {[%clk 0:01:43.4]} 18. cxd5
{[%clk 0:01:26]} 18... exd5 {[%clk 0:01:34.3]} 19. Ncxd4 {[%clk 0:01:18.4]}
19... Qb4 {[%clk 0:01:24.6]} 20. Qb3 {[%clk 0:00:44.6]} 20... Qxb3 {[%clk
0:01:24]} 21. Nxb3 {[%clk 0:00:42.8]} 21... Bh5 {[%clk 0:01:24.1]} 22. Nfd4
{[%clk 0:00:39.9]} 22... Bxe2 {[%clk 0:01:23.2]} 23. Rxe2 {[%clk 0:00:40.2]}
23... Rfe8 {[%clk 0:01:20.5]} 24. Rae1 {[%clk 0:00:38.7]} 24... Rxe2 {[%clk
0:01:19.5]} 25. Rxe2 {[%clk 0:00:38.8]} 25... Kf7 {[%clk 0:01:18.2]} 26. f3
{[%clk 0:00:34.2]} 26... Nxd4 {[%clk 0:01:18.2]} 27. Nxd4 {[%clk 0:00:33.7]}
27... Rc8 {[%clk 0:01:18.7]} 28. Kf2 {[%clk 0:00:29.6]} 28... Rc4 {[%clk
0:01:10.9]} 29. Ke3 {[%clk 0:00:25.2]} 29... Nd7 {[%clk 0:01:00.2]} 30. Rc2
{[%clk 0:00:19]} 30... Rxc2 {[%clk 0:00:51.9]} 31. Nxc2 {[%clk 0:00:18.9]} 31...
Ke6 {[%clk 0:00:52.8]} 32. Nd4+ {[%clk 0:00:17.6]} 32... Ke5 {[%clk 0:00:51.9]}
33. f4+ {[%clk 0:00:17.4]} 33... Kf6 {[%clk 0:00:52.4]} 34. g4 {[%clk
0:00:16.7]} 34... h6 {[%clk 0:00:47.9]} 35. h4 {[%clk 0:00:16.3]} 35... Nc5
{[%clk 0:00:47.6]} 36. g5+ {[%clk 0:00:15]} 36... Kf7 {[%clk 0:00:45.7]} 37. f5
{[%clk 0:00:14]} 37... hxg5 {[%clk 0:00:45.2]} 38. hxg5 {[%clk 0:00:13.8]} 38...
Ne4 {[%clk 0:00:40.6]} 39. Kf4 {[%clk 0:00:13.5]} 39... Nd2 {[%clk 0:00:34.8]}
40. a4 {[%clk 0:00:11.6]} 40... Nc4 {[%clk 0:00:33.5]} 41. b3 {[%clk 0:00:11.6]}
41... Nd2 {[%clk 0:00:31.1]} 42. Ke5 {[%clk 0:00:11.9]} 42... Ne4 {[%clk
0:00:28.8]} 43. g6+ {[%clk 0:00:11.5]} 43... Ke7 {[%clk 0:00:28.8]} 44. Kxd5
{[%clk 0:00:11.9]} 44... Ng3 {[%clk 0:00:27.5]} 45. Ke5 {[%clk 0:00:12]} 45...
Nh5 {[%clk 0:00:25]} 46. Ne6 {[%clk 0:00:12.1]} 46... a5 {[%clk 0:00:22.8]} 47.
Nd4 {[%clk 0:00:11.2]} 47... Nf6 {[%clk 0:00:19.9]} 48. Ne6 {[%clk 0:00:11.1]}
48... Nd7+ {[%clk 0:00:20.3]} 49. Kd5 {[%clk 0:00:10.8]} 49... Kf6 {[%clk
0:00:21.2]} 50. Ke4 {[%clk 0:00:10.1]} 50... b6 {[%clk 0:00:19.1]} 51. Kf4
{[%clk 0:00:09.6]} 51... Nb8 {[%clk 0:00:17]} 52. Nc7 {[%clk 0:00:09.6]} 52...
Ke7 {[%clk 0:00:12.1]} 53. Nd5+ {[%clk 0:00:09.9]} 53... Kd6 {[%clk 0:00:09.5]}
54. f6 {[%clk 0:00:09.7]} 54... gxf6 {[%clk 0:00:06.1]} 55. g7 {[%clk
0:00:10.1]} 1-0

[Event "Early-Titled-Tuesday-Blitz-August-29-2023"]
[Site "Chess.com"]
[Date "2023.08.29"]
[Round "9"]
[White "Rosh1610"]
[Black "Semetey"]
[Result "1-0"]
[WhiteElo "2457"]
[BlackElo "2587"]
[TimeControl "180+1"]
[EndTime "9:43:56 PDT"]
[Termination "Rosh1610 won on time"]

1. e4 {[%clk 0:02:29.6]} 1... e5 {[%clk 0:02:52.9]} 2. Nf3 {[%clk 0:02:29]} 2...
Nc6 {[%clk 0:02:52]} 3. Bb5 {[%clk 0:02:29.6]} 3... a6 {[%clk 0:02:50.6]} 4. Ba4
{[%clk 0:02:30.1]} 4... Nf6 {[%clk 0:02:50]} 5. O-O {[%clk 0:02:29.9]} 5... Be7
{[%clk 0:02:49.6]} 6. Re1 {[%clk 0:02:30]} 6... b5 {[%clk 0:02:49.5]} 7. Bb3
{[%clk 0:02:30.4]} 7... O-O {[%clk 0:02:49.5]} 8. c3 {[%clk 0:02:30.7]} 8... d6
{[%clk 0:02:48.2]} 9. h3 {[%clk 0:02:30.7]} 9... Nb8 {[%clk 0:02:47.6]} 10. d4
{[%clk 0:02:29.2]} 10... Nbd7 {[%clk 0:02:48.2]} 11. Nh4 {[%clk 0:02:28]} 11...
Nxe4 {[%clk 0:02:41.4]} 12. Nf5 {[%clk 0:02:26.5]} 12... Ndf6 {[%clk 0:02:31.8]}
13. Nxe7+ {[%clk 0:02:08.7]} 13... Qxe7 {[%clk 0:02:30.6]} 14. Rxe4 {[%clk
0:01:50]} 14... Nxe4 {[%clk 0:02:29.5]} 15. Bd5 {[%clk 0:01:49.5]} 15... Bf5
{[%clk 0:02:29.3]} 16. Qf3 {[%clk 0:01:46.5]} 16... Nf6 {[%clk 0:02:17.1]} 17.
Bxa8 {[%clk 0:01:43]} 17... Bxb1 {[%clk 0:02:16.5]} 18. Rxb1 {[%clk 0:01:33]}
18... e4 {[%clk 0:02:16.3]} 19. Bxe4 {[%clk 0:01:33.1]} 19... Nxe4 {[%clk
0:02:11.2]} 20. Bf4 {[%clk 0:01:30.5]} 20... f5 {[%clk 0:02:10.4]} 21. Re1
{[%clk 0:01:27.9]} 21... Qf7 {[%clk 0:02:09.9]} 22. b3 {[%clk 0:01:18.9]} 22...
Re8 {[%clk 0:02:09.7]} 23. Qd3 {[%clk 0:01:14.1]} 23... g5 {[%clk 0:01:55.1]}
24. Bc1 {[%clk 0:01:05]} 24... h6 {[%clk 0:01:50.8]} 25. h4 {[%clk 0:00:54.9]}
25... d5 {[%clk 0:00:44.4]} 26. hxg5 {[%clk 0:00:38.5]} 26... hxg5 {[%clk
0:00:45.3]} 27. f3 {[%clk 0:00:32.3]} 27... Nd6 {[%clk 0:00:41]} 28. Rxe8+
{[%clk 0:00:21.1]} 28... Qxe8 {[%clk 0:00:41.9]} 29. Bxg5 {[%clk 0:00:20.3]}
29... Kf7 {[%clk 0:00:35.2]} 30. Kf2 {[%clk 0:00:19.2]} 30... Kg6 {[%clk
0:00:20.1]} 31. Bf4 {[%clk 0:00:17.8]} 31... Qe7 {[%clk 0:00:19.7]} 32. g4
{[%clk 0:00:12.5]} 32... Qh4+ {[%clk 0:00:19.4]} 33. Bg3 {[%clk 0:00:12.7]}
33... Qg5 {[%clk 0:00:18.7]} 34. Bxd6 {[%clk 0:00:10.6]} 34... cxd6 {[%clk
0:00:18.7]} 35. Qxf5+ {[%clk 0:00:10.2]} 35... Qxf5 {[%clk 0:00:19.1]} 36. gxf5+
{[%clk 0:00:11.1]} 36... Kxf5 {[%clk 0:00:19.6]} 37. Kg3 {[%clk 0:00:11.7]}
37... Kg5 {[%clk 0:00:19.7]} 38. f4+ {[%clk 0:00:11.8]} 38... Kh5 {[%clk
0:00:19.2]} 39. Kf3 {[%clk 0:00:12.7]} 39... Kh4 {[%clk 0:00:18.7]} 40. a3
{[%clk 0:00:10.3]} 40... a5 {[%clk 0:00:18.2]} 41. a4 {[%clk 0:00:09.3]} 41...
bxa4 {[%clk 0:00:17.6]} 42. bxa4 {[%clk 0:00:10.2]} 42... Kh5 {[%clk 0:00:11.5]}
43. Kg3 {[%clk 0:00:10]} 43... Kg6 {[%clk 0:00:09.8]} 44. Kg4 {[%clk 0:00:09.1]}
44... Kf6 {[%clk 0:00:10.3]} 45. f5 {[%clk 0:00:09.2]} 45... Kf7 {[%clk
0:00:10.5]} 46. Kg5 {[%clk 0:00:09.5]} 46... Kg7 {[%clk 0:00:11.1]} 47. f6+
{[%clk 0:00:10.4]} 47... Kf7 {[%clk 0:00:11.5]} 48. Kf5 {[%clk 0:00:11.3]} 48...
Kf8 {[%clk 0:00:08.6]} 49. Ke6 {[%clk 0:00:12.2]} 49... Ke8 {[%clk 0:00:09.2]}
50. Kxd6 {[%clk 0:00:10.6]} 1-0

[Event "Early-Titled-Tuesday-Blitz-August-29-2023"]
[Site "Chess.com"]
[Date "2023.08.29"]
[Round "9"]
[White "IngOscarArdila"]
[Black "Mr_November18"]
[Result "0-1"]
[WhiteElo "2299"]
[BlackElo "1938"]
[TimeControl "180+1"]
[EndTime "9:43:56 PDT"]
[Termination "Mr_November18 won by checkmate"]

1. d4 {[%clk 0:02:46.3]} 1... Nf6 {[%clk 0:02:58.4]} 2. c4 {[%clk 0:02:45.9]}
2... g6 {[%clk 0:02:57.8]} 3. Nc3 {[%clk 0:02:46]} 3... Bg7 {[%clk 0:02:58.1]}
4. Nf3 {[%clk 0:02:46.4]} 4... d6 {[%clk 0:02:58.3]} 5. e3 {[%clk 0:02:46.7]}
5... O-O {[%clk 0:02:58.2]} 6. Be2 {[%clk 0:02:46.7]} 6... Nc6 {[%clk
0:02:58.3]} 7. O-O {[%clk 0:02:46.7]} 7... Re8 {[%clk 0:02:58.7]} 8. Qc2 {[%clk
0:02:45.2]} 8... e5 {[%clk 0:02:57.5]} 9. dxe5 {[%clk 0:02:45.4]} 9... dxe5
{[%clk 0:02:57.7]} 10. Rd1 {[%clk 0:02:44.9]} 10... Qe7 {[%clk 0:02:54.4]} 11.
Nd5 {[%clk 0:02:44.7]} 11... Nxd5 {[%clk 0:02:51.9]} 12. cxd5 {[%clk 0:02:45.6]}
12... Nb4 {[%clk 0:02:38.1]} 13. Qc4 {[%clk 0:02:45.2]} 13... a5 {[%clk
0:02:29.7]} 14. a3 {[%clk 0:02:42.8]} 14... b5 {[%clk 0:02:21.5]} 15. Qb3 {[%clk
0:02:31]} 15... e4 {[%clk 0:01:58.7]} 16. Nd4 {[%clk 0:02:23.5]} 16... Nd3
{[%clk 0:01:54.8]} 17. Bxd3 {[%clk 0:02:19.7]} 17... exd3 {[%clk 0:01:54.6]} 18.
Rxd3 {[%clk 0:02:19.8]} 18... Ba6 {[%clk 0:01:49.3]} 19. Nc6 {[%clk 0:02:16.9]}
19... Qe4 {[%clk 0:01:35]} 20. Rd1 {[%clk 0:01:57.9]} 20... b4 {[%clk
0:01:14.3]} 21. f3 {[%clk 0:01:38.4]} 21... Qh4 {[%clk 0:01:05.9]} 22. e4 {[%clk
0:01:28.8]} 22... Bb5 {[%clk 0:01:01.3]} 23. Be3 {[%clk 0:01:26.2]} 23... Bxc6
{[%clk 0:00:56.5]} 24. dxc6 {[%clk 0:01:26.1]} 24... bxa3 {[%clk 0:00:50.3]} 25.
Rxa3 {[%clk 0:01:22.8]} 25... Reb8 {[%clk 0:00:42.7]} 26. Qd5 {[%clk 0:01:09.6]}
26... Rd8 {[%clk 0:00:29.2]} 27. Qb3 {[%clk 0:01:09.2]} 27... Rdb8 {[%clk
0:00:29.3]} 28. Qc4 {[%clk 0:01:02]} 28... Rxb2 {[%clk 0:00:25.3]} 29. Rad3
{[%clk 0:01:01.8]} 29... h5 {[%clk 0:00:23.5]} 30. Rd7 {[%clk 0:00:59.5]} 30...
Rf8 {[%clk 0:00:21.3]} 31. R7d2 {[%clk 0:00:35.6]} 31... Rxd2 {[%clk 0:00:19.2]}
32. Rxd2 {[%clk 0:00:33.3]} 32... Qe1+ {[%clk 0:00:17.5]} 33. Qf1 {[%clk
0:00:33.3]} 33... Qxe3+ {[%clk 0:00:17.2]} 34. Qf2 {[%clk 0:00:32.5]} 34...
Qxf2+ {[%clk 0:00:14.6]} 35. Kxf2 {[%clk 0:00:33.4]} 35... Bf6 {[%clk 0:00:14]}
36. Rd5 {[%clk 0:00:32.9]} 36... Rd8 {[%clk 0:00:13]} 37. Rxa5 {[%clk
0:00:32.2]} 37... Rd2+ {[%clk 0:00:12.9]} 38. Kf1 {[%clk 0:00:31.3]} 38... Bd4
{[%clk 0:00:11.2]} 39. Ra8+ {[%clk 0:00:30.2]} 39... Kg7 {[%clk 0:00:10.5]} 40.
Rc8 {[%clk 0:00:26.5]} 40... Bb6 {[%clk 0:00:09.5]} 41. e5 {[%clk 0:00:22.8]}
41... Rf2+ {[%clk 0:00:07.9]} 42. Ke1 {[%clk 0:00:23]} 42... Rxg2 {[%clk
0:00:07.7]} 43. Re8 {[%clk 0:00:23]} 43... Rxh2 {[%clk 0:00:07.4]} 44. Re7
{[%clk 0:00:22.6]} 44... Ra2 {[%clk 0:00:03.8]} 45. e6 {[%clk 0:00:21.9]} 45...
Ra1+ {[%clk 0:00:02.6]} 46. Ke2 {[%clk 0:00:21.7]} 46... Kf6 {[%clk 0:00:02.9]}
47. exf7 {[%clk 0:00:19.9]} 47... Kxe7 {[%clk 0:00:03]} 48. f4 {[%clk
0:00:19.8]} 48... Kxf7 {[%clk 0:00:03.2]} 49. f5 {[%clk 0:00:20.5]} 49... Kf6
{[%clk 0:00:04.1]} 50. Kf3 {[%clk 0:00:20.4]} 50... Kxf5 {[%clk 0:00:05]} 51.
Kg3 {[%clk 0:00:20.7]} 51... Rc1 {[%clk 0:00:04.4]} 52. Kh4 {[%clk 0:00:21.6]}
52... Rxc6 {[%clk 0:00:05]} 53. Kh3 {[%clk 0:00:22.4]} 53... Rc4 {[%clk
0:00:05.8]} 54. Kg2 {[%clk 0:00:23.3]} 54... Kf4 {[%clk 0:00:06.2]} 55. Kf1
{[%clk 0:00:23.5]} 55... Rc2 {[%clk 0:00:06.2]} 56. Ke1 {[%clk 0:00:23.7]} 56...
Kf3 {[%clk 0:00:06.3]} 57. Kd1 {[%clk 0:00:24.6]} 57... Rg2 {[%clk 0:00:06.1]}
58. Kc1 {[%clk 0:00:24.6]} 58... Ke3 {[%clk 0:00:05.8]} 59. Kd1 {[%clk
0:00:25.5]} 59... Rh2 {[%clk 0:00:05.3]} 60. Kc1 {[%clk 0:00:26.4]} 60... Kd3
{[%clk 0:00:05.8]} 61. Kd1 {[%clk 0:00:27.3]} 61... Rh1# {[%clk 0:00:05]} 0-1

[Event "Early-Titled-Tuesday-Blitz-August-29-2023"]
[Site "Chess.com"]
[Date "2023.08.29"]
[Round "9"]
[White "regular_legs"]
[Black "CrazyAdvenTures"]
[Result "0-1"]
[WhiteElo "2550"]
[BlackElo "2695"]
[TimeControl "180+1"]
[EndTime "9:43:58 PDT"]
[Termination "CrazyAdvenTures won on time"]

1. d4 {[%clk 0:03:00.9]} 1... Nf6 {[%clk 0:02:58.7]} 2. c4 {[%clk 0:03:00]} 2...
c5 {[%clk 0:02:59.3]} 3. d5 {[%clk 0:02:59.6]} 3... e6 {[%clk 0:02:59.5]} 4. Nc3
{[%clk 0:02:59.2]} 4... exd5 {[%clk 0:02:59.7]} 5. cxd5 {[%clk 0:03:00.1]} 5...
d6 {[%clk 0:03:00.6]} 6. e4 {[%clk 0:03:00.3]} 6... g6 {[%clk 0:03:01.2]} 7.
Nge2 {[%clk 0:03:01.1]} 7... Bg7 {[%clk 0:03:01]} 8. Ng3 {[%clk 0:03:01.7]} 8...
h5 {[%clk 0:02:58.4]} 9. Be2 {[%clk 0:02:56.5]} 9... h4 {[%clk 0:02:58.1]} 10.
Nf1 {[%clk 0:02:56.3]} 10... a6 {[%clk 0:02:57.5]} 11. a4 {[%clk 0:02:54.9]}
11... Nbd7 {[%clk 0:02:44.7]} 12. Bg5 {[%clk 0:02:31.8]} 12... Qb6 {[%clk
0:02:32.4]} 13. Qd2 {[%clk 0:02:25.9]} 13... Qb4 {[%clk 0:02:23.3]} 14. f3
{[%clk 0:02:20.2]} 14... Nh5 {[%clk 0:02:11.7]} 15. a5 {[%clk 0:01:57.3]} 15...
b5 {[%clk 0:01:52.3]} 16. Bxh4 {[%clk 0:01:24.7]} 16... Nf4 {[%clk 0:01:39.2]}
17. Bg3 {[%clk 0:01:21.5]} 17... Nxe2 {[%clk 0:01:19.2]} 18. Kxe2 {[%clk
0:01:22.2]} 18... c4 {[%clk 0:01:09.3]} 19. Ne3 {[%clk 0:01:14.5]} 19... Ne5
{[%clk 0:01:02.1]} 20. Rhb1 {[%clk 0:01:01.2]} 20... Nd3 {[%clk 0:00:49.6]} 21.
Nc2 {[%clk 0:00:53.3]} 21... Qc5 {[%clk 0:00:46.4]} 22. b4 {[%clk 0:00:53.3]}
22... Qa7 {[%clk 0:00:24.2]} 23. Ra3 {[%clk 0:00:50.7]} 23... Bd7 {[%clk
0:00:19.1]} 24. Qe3 {[%clk 0:00:50.6]} 24... Qc7 {[%clk 0:00:15.1]} 25. Ne1
{[%clk 0:00:47.9]} 25... Ne5 {[%clk 0:00:11.5]} 26. Kf1 {[%clk 0:00:47.5]} 26...
O-O {[%clk 0:00:10.4]} 27. Kg1 {[%clk 0:00:46.7]} 27... f5 {[%clk 0:00:10.9]}
28. h3 {[%clk 0:00:32.4]} 28... Rae8 {[%clk 0:00:10.4]} 29. Qd2 {[%clk
0:00:24.7]} 29... fxe4 {[%clk 0:00:09.7]} 30. Nxe4 {[%clk 0:00:24.4]} 30... Bf5
{[%clk 0:00:10]} 31. Nc2 {[%clk 0:00:21.7]} 31... Bxe4 {[%clk 0:00:08.7]} 32.
fxe4 {[%clk 0:00:22.6]} 32... Nd3 {[%clk 0:00:09.4]} 33. Qe2 {[%clk 0:00:13.1]}
33... Qd7 {[%clk 0:00:05.8]} 34. Kh2 {[%clk 0:00:13]} 34... Be5 {[%clk
0:00:05.9]} 35. Bxe5 {[%clk 0:00:11.7]} 35... Rxe5 {[%clk 0:00:06.8]} 36. Rf1
{[%clk 0:00:10.4]} 36... Rxf1 {[%clk 0:00:05.8]} 37. Qxf1 {[%clk 0:00:11.3]}
37... Rxe4 {[%clk 0:00:06.6]} 38. Qf6 {[%clk 0:00:10.2]} 38... Qf7 {[%clk
0:00:02.6]} 39. Qxd6 {[%clk 0:00:10]} 39... Re2 {[%clk 0:00:03.3]} 40. Nd4
{[%clk 0:00:09.5]} 40... Rxg2+ {[%clk 0:00:02.7]} 41. Kxg2 {[%clk 0:00:09]}
41... Qf2+ {[%clk 0:00:03.6]} 42. Kh1 {[%clk 0:00:09.5]} 42... Qf1+ {[%clk
0:00:04.1]} 43. Kh2 {[%clk 0:00:09.5]} 43... Qf2+ {[%clk 0:00:05]} 44. Kh1
{[%clk 0:00:10]} 44... Nf4 {[%clk 0:00:04.2]} 45. Qb8+ {[%clk 0:00:05.4]} 45...
Kh7 {[%clk 0:00:04]} 46. Qc7+ {[%clk 0:00:02.6]} 46... Kh6 {[%clk 0:00:03.4]}
47. Nf5+ {[%clk 0:00:02.5]} 47... gxf5 {[%clk 0:00:04.3]} 48. Qd6+ {[%clk
0:00:02.7]} 48... Kh5 {[%clk 0:00:04.5]} 49. Qxf4 {[%clk 0:00:02.3]} 49... Qxf4
{[%clk 0:00:04.6]} 50. Rc3 {[%clk 0:00:01.3]} 50... Qd4 {[%clk 0:00:04.2]} 51.
Rg3 {[%clk 0:00:01]} 51... Qxd5+ {[%clk 0:00:04.8]} 52. Kh2 {[%clk 0:00:01.9]}
52... Qe5 {[%clk 0:00:05.2]} 53. Kg2 {[%clk 0:00:02.5]} 53... Qxg3+ {[%clk
0:00:05.5]} 54. Kxg3 {[%clk 0:00:03.4]} 54... c3 {[%clk 0:00:06.3]} 55. Kf3
{[%clk 0:00:03.8]} 55... c2 {[%clk 0:00:07.2]} 56. Ke2 {[%clk 0:00:04.7]} 56...
c1=Q {[%clk 0:00:08.1]} 57. Kd3 {[%clk 0:00:05]} 57... Qc4+ {[%clk 0:00:09]} 0-1